fUSD/lending_fUSD_20250923
["ID","MTS","AMOUNT","RATE_DAILY","PERIOD"]
[387228978,1758661895195,-400.0,0.00024931,3]
[387228979,1758661895205,-400.0,0.00024931,3]
[387228980,1758661895214,-724.83,0.00024931,3]
[387228981,1758661895225,-1210.07,0.00024931,3]
[387228982,1758661895234,-615.59,0.00024931,3]
[387228983,1758661895244,-3333.29,0.00024931,3]
[387228984,1758661895255,-1486.44,0.00024931,3]
[387228985,1758661895265,-6265.78,0.00024931,3]
[387228986,1758661895275,-583.56,0.00024931,3]
[387228987,1758661895285,-400.0,0.00024931,3]
[387228988,1758661895295,-603.28,0.00024931,3]
[387228989,1758661895305,-628.37,0.00024931,3]
[387228990,1758661895315,-2239.38,0.00024931,3]
[387228991,1758661895332,-531.17,0.00024931,3]
[387228992,1758661895342,-1607.78,0.00024931,3]
[387228993,1758661895351,-404.2306336,0.00024931,3]
[387228994,1758661895361,-480.92,0.00024931,3]
[387228995,1758661895371,-7373.32,0.00024931,3]
[387228996,1758661895381,-767.35,0.00024931,3]
[387228997,1758661895390,-400.0,0.00024931,3]
[387228998,1758661895400,-589.79,0.00024931,3]
[387228999,1758661895410,-400.0,0.00024931,3]
[387229000,1758661895419,-400.0,0.00024931,3]
[387229001,1758661895430,-400.0,0.00024931,3]
[387229002,1758661895441,-3116.86,0.00024931,3]
[387229003,1758661895451,-1310.25,0.00024931,3]
[387229004,1758661895460,-400.0,0.00024931,3]
[387229005,1758661895470,-400.0,0.00024931,3]
[387229006,1758661895480,-400.0,0.00024931,3]
[387229007,1758661895489,-1870.56,0.00024931,3]
[387229008,1758661895500,-1472.34,0.00024931,3]
[387229009,1758661895509,-403.75291741,0.00024931,3]
[387229010,1758661895523,-471.7,0.00024931,3]
[387229011,1758661895533,-2177.8,0.00024931,3]
[387229012,1758661895542,-738.91,0.00024931,3]
[387229013,1758661895552,-735.31,0.00024931,3]
[387229014,1758661895562,-400.0,0.00024931,3]
[387229015,1758661895571,-400.0,0.00024931,3]
[387229016,1758661895581,-401.08414308,0.00024931,3]
[387229017,1758661895592,-400.0,0.00024931,3]
[387229018,1758661895604,-400.0,0.00024931,3]
[387229019,1758661895614,-544.42,0.00024931,3]
[387229020,1758661895625,-400.0,0.00024931,3]
[387229021,1758661895635,-949.39,0.00024931,3]
[387229022,1758661895645,-400.0,0.00024931,3]
[387229023,1758661895655,-458.66,0.00024931,3]
[387229024,1758661895664,-400.0,0.00024931,3]
[387229025,1758661895680,-400.0,0.00024931,3]
[387229026,1758661895691,-1088.04,0.00024931,3]
[387229027,1758661895702,-544.72,0.00024931,3]
[387229028,1758661895711,-426.44,0.00024931,3]
[387229029,1758661895721,-2704.29,0.00024931,3]
[387229030,1758661895731,-400.0,0.00024931,3]
[387229031,1758661895740,-1238.47,0.00024931,3]
[387229032,1758661895751,-856.71,0.00024931,3]
[387229033,1758661895764,-400.0,0.00024931,3]
[387229034,1758661895774,-2677.13,0.00024931,3]
[387229035,1758661895784,-400.0,0.00024931,3]
[387229036,1758661895793,-400.0,0.00024931,3]
[387229037,1758661895803,-400.0,0.00024931,3]
[387229038,1758661895813,-755.47,0.00024931,3]
[387229039,1758661895822,-1220.87,0.00024931,3]
[387229040,1758661895832,-502.01,0.00024931,3]
[387229041,1758661895842,-400.0,0.00024931,3]
[387229042,1758661895853,-2168.19,0.00024931,3]
[387229043,1758661895862,-400.0,0.00024931,3]
[387229044,1758661895872,-400.0,0.00024931,3]
[387229045,1758661895882,-3053.86,0.00024931,3]
[387229046,1758661895892,-400.0,0.00024931,3]
[387229047,1758661895902,-407.55257056,0.00024931,3]
[387229048,1758661895912,-1612.09,0.00024931,3]
[387229049,1758661895923,-1329.4,0.00024931,3]
[387229050,1758661895933,-867.57,0.00024931,3]
[387229051,1758661895943,-647.32,0.00024931,3]
[387229052,1758661895954,-831.81,0.00024931,3]
[387229053,1758661895964,-1588.92,0.00024931,3]
[387229054,1758661895975,-1935.7,0.00024931,3]
[387229055,1758661895985,-3513.92,0.00024931,3]
[387229056,1758661895995,-2041.54,0.00024931,3]
[387229057,1758661896007,-1185.45,0.00024931,3]
[387229058,1758661896017,-400.0,0.00024931,3]
[387229059,1758661896027,-400.0,0.00024931,3]
[387229060,1758661896038,-1555.0,0.00024931,3]
[387229061,1758661896048,-824.74,0.00024931,3]
[387229062,1758661896058,-400.0,0.00024931,3]
[387229063,1758661896068,-412.30479054,0.00024931,3]
[387229064,1758661896078,-400.0,0.00024931,3]
[387229065,1758661896088,-1113.03,0.00024931,3]
[387229066,1758661896098,-400.0,0.00024931,3]
[387229067,1758661896107,-3739.54,0.00024931,3]
[387229068,1758661896117,-400.0,0.00024931,3]
[387229069,1758661896127,-400.0,0.00024931,3]
[387229070,1758661896137,-1012.43,0.00024931,3]
[387229071,1758661896147,-400.0,0.00024931,3]
[387229072,1758661896157,-2289.4,0.00024931,3]
[387229073,1758661896167,-400.0,0.00024931,3]
[387229074,1758661896177,-400.0,0.00024931,3]
[387229075,1758661896188,-400.0,0.00024931,3]
[387229076,1758661896197,-400.0,0.00024931,3]
[387229077,1758661896207,-400.0,0.00024931,3]
[387229078,1758661896217,-400.0,0.00024931,3]
[387229079,1758661896228,-400.0,0.00024931,3]
[387229080,1758661896238,-438.7,0.00024931,3]
[387229081,1758661896248,-400.0,0.00024931,3]
[387229082,1758661896258,-375.24822137,0.00024931,3]
[387229083,1758661896269,-1461.4,0.00024931,3]
[387229084,1758661896278,-2079.07,0.00024931,3]
[387229085,1758661896289,-400.0,0.00024931,3]
[387229086,1758661896299,-1429.0,0.00024931,3]
[387229087,1758661896309,-400.0,0.00024931,3]
[387229088,1758661896319,-618.78,0.00024931,3]
[387229089,1758661896329,-502.84,0.00024931,3]
[387229090,1758661896340,-748.63,0.00024931,3]
[387229091,1758661896349,-400.0,0.00024931,3]
[387229092,1758661896359,-1859.96,0.00024931,3]
[387229093,1758661896369,-737.92,0.00024931,3]
[387229094,1758661896378,-866.73,0.00024931,3]
[387229095,1758661896388,-400.0,0.00024931,3]
[387229096,1758661896398,-453.36,0.00024931,3]
[387229097,1758661896408,-400.0,0.00024931,3]
[387229098,1758661896418,-403.68445755,0.00024931,3]
[387229099,1758661896427,-400.0,0.00024931,3]
[387229100,1758661896437,-400.0,0.00024931,3]
[387229101,1758661896447,-2785.79,0.00024931,3]
[387229102,1758661896465,-400.0,0.00024931,3]
[387229103,1758661896476,-400.0,0.00024931,3]
[387229104,1758661896486,-400.0,0.00024931,3]
[387229105,1758661896496,-400.0,0.00024931,3]
[387229106,1758661896506,-400.0,0.00024931,3]
[387229107,1758661896516,-416.66,0.00024931,3]
[387229108,1758661896525,-400.0,0.00024931,3]
[387229109,1758661896535,-400.0,0.00024931,3]
[387229110,1758661896545,-792.15,0.00024931,3]
[387229111,1758661896556,-1879.13,0.00024931,3]
[387229112,1758661896566,-2632.58,0.00024931,3]
[387229113,1758661896576,-4475.6,0.00024931,3]
[387229114,1758661896585,-1457.58,0.00024931,3]
[387229115,1758661896599,-400.0,0.00024931,3]
[387229116,1758661896609,-1294.06,0.00024931,3]
[387229117,1758661896619,-4945.57,0.00024931,3]
[387229118,1758661896629,-400.0,0.00024931,3]
[387229119,1758661896643,-749.16,0.00024931,3]
[387229120,1758661896653,-400.0,0.00024931,3]
[387229121,1758661896664,-400.0,0.00024931,3]
[387229122,1758661896674,-1434.35,0.00024931,3]
[387229123,1758661896684,-1499.8,0.00024931,3]
[387229124,1758661896694,-400.0,0.00024931,3]
[387229125,1758661896703,-400.0,0.00024931,3]
[387229126,1758661896713,-400.0,0.00024931,3]
[387229127,1758661896724,-400.0,0.00024931,3]
[387229128,1758661896734,-400.0,0.00024931,3]
[387229129,1758661896744,-2040.78,0.00024931,3]
[387229130,1758661896754,-400.0,0.00024931,3]
[387229131,1758661896764,-615.93,0.00024931,3]
[387229132,1758661896774,-2345.85,0.00024931,3]
[387229133,1758661896783,-400.0,0.00024931,3]
[387229134,1758661896794,-1285.51,0.00024931,3]
[387229135,1758661896803,-400.0,0.00024931,3]
[387229136,1758661896813,-1609.55,0.00024931,3]
[387229137,1758661896823,-1904.25,0.00024931,3]
[387229138,1758661896833,-3296.54,0.00024931,3]
[387229139,1758661896842,-400.0,0.00024931,3]
[387229140,1758661896852,-2338.5,0.00024931,3]
[387229141,1758661896862,-400.0,0.00024931,3]
[387229142,1758661896872,-917.64,0.00024931,3]
[387229143,1758661896882,-722.52,0.00024931,3]
[387229144,1758661896892,-400.0,0.00024931,3]
[387229145,1758661896902,-400.0,0.00024931,3]
[387229146,1758661896915,-400.0,0.00024931,3]
[387229147,1758661896926,-445.14,0.00024931,3]
[387229148,1758661896936,-577.02,0.00024931,3]
[387229149,1758661896946,-400.0,0.00024931,3]
[387229150,1758661896955,-1330.46,0.00024931,3]
[387229151,1758661896965,-597.44,0.00024931,3]
[387229152,1758661896976,-564.96,0.00024931,3]
[387229153,1758661896985,-507.89114751,0.00024931,3]
[387229154,1758661896996,-400.0,0.00024931,3]
[387229155,1758661897006,-3363.67,0.00024931,3]
[387229156,1758661897016,-1955.25,0.00024931,3]
[387229157,1758661897026,-400.0,0.00024931,3]
[387229158,1758661897037,-644.02,0.00024931,3]
[387229159,1758661897048,-1185.7,0.00024931,3]
[387229160,1758661897058,-14467.01,0.00024931,3]
[387229161,1758661897068,-2713.61,0.00024931,3]
[387229162,1758661897078,-1986.63,0.00024931,3]
[387229163,1758661897088,-400.0,0.00024931,3]
[387229164,1758661897098,-1655.1,0.00024931,3]
[387229165,1758661897107,-480.65,0.00024931,3]
[387229166,1758661897117,-400.0,0.00024931,3]
[387229167,1758661897127,-400.0,0.00024931,3]
[387229168,1758661897137,-400.0,0.00024931,3]
[387229169,1758661897150,-445.15962178,0.00024931,3]
[387229170,1758661897164,-730.15,0.00024931,3]
[387229171,1758661897174,-2636.32,0.00024931,3]
[387229172,1758661897184,-964.91,0.00024931,3]
[387229173,1758661897194,-7663.69,0.00024931,3]
[387229174,1758661897205,-2169.87,0.00024931,3]
[387229175,1758661897215,-11794.83,0.00024931,3]
[387229176,1758661897226,-1767.02,0.00024931,3]
[387229177,1758661897236,-400.0,0.00024931,3]
[387229178,1758661897245,-400.0,0.00024931,3]
[387229179,1758661897256,-468.92,0.00024931,3]
[387229180,1758661897265,-400.0,0.00024931,3]
[387229181,1758661897275,-670.23,0.00024931,3]
[387229182,1758661897285,-465.79,0.00024931,3]
[387229183,1758661897294,-647.18,0.00024931,3]
[387229184,1758661897304,-400.0,0.00024931,3]
[387229185,1758661897314,-1842.11,0.00024931,3]
[387229186,1758661897323,-2717.69,0.00024931,3]
[387229187,1758661897333,-2137.87,0.00024931,3]
[387229188,1758661897343,-400.0,0.00024931,3]
[387229189,1758661897352,-508.31,0.00024931,3]
[387229190,1758661897362,-400.0,0.00024931,3]
[387229191,1758661897371,-349.24348419,0.00024931,3]
[387229192,1758661897381,-500.0,0.00024931,2]
[387229193,1758661897394,-708.36,0.00024931,3]
[387229194,1758661897404,-400.0,0.00024931,3]
[387229195,1758661897413,-400.0,0.00024931,3]
[387229196,1758661897423,-1504.78,0.00024931,3]
[387229197,1758661897433,-555.73,0.00024931,3]
[387229198,1758661897442,-503.33,0.00024931,3]
[387229199,1758661897452,-400.0,0.00024931,3]
[387229200,1758661897461,-400.0,0.00024931,3]
[387229201,1758661897471,-2022.73,0.00024931,3]
[387229202,1758661897481,-400.0,0.00024931,3]
[387229203,1758661897492,-400.0,0.00024931,3]
[387229204,1758661897502,-2104.52,0.00024931,3]
[387229205,1758661897512,-687.03,0.00024931,3]
[387229206,1758661897522,-12237.31,0.00024931,3]
[387229207,1758661897531,-438.27,0.00024931,3]
[387229208,1758661897541,-516.66,0.00024931,3]
[387229209,1758661897551,-3018.89,0.00024931,3]
[387229210,1758661897561,-411.85,0.00024931,3]
[387229211,1758661897572,-400.0,0.00024931,3]
[387229212,1758661897582,-400.0,0.00024931,3]
[387229213,1758661897595,-685.06,0.00024931,3]
[387229214,1758661897605,-400.0,0.00024931,3]
[387229215,1758661897616,-400.0,0.00024931,3]
[387229216,1758661897629,-400.0,0.00024931,3]
[387229217,1758661897642,-2715.43,0.00024931,3]
[387229218,1758661897652,-16706.4,0.00024931,3]
[387229219,1758661897663,-462.1,0.00024931,3]
[387229220,1758661897675,-400.0,0.00024931,3]
[387229221,1758661897687,-782.28,0.00024931,3]
[387229222,1758661897697,-400.0,0.00024931,3]
[387229223,1758661897707,-400.0,0.00024931,3]
[387229224,1758661897717,-431.56723703,0.00024931,3]
[387229225,1758661897727,-1781.89,0.00024931,3]
[387229226,1758661897736,-543.98,0.00024931,3]
[387229227,1758661897746,-400.0,0.00024931,3]
[387229228,1758661897756,-400.0,0.00024931,3]
[387229229,1758661897766,-5774.99,0.00024931,3]
[387229230,1758661897776,-2050.32,0.00024931,3]
[387229231,1758661897786,-1816.5,0.00024931,3]
[387229232,1758661897796,-1720.5,0.00024931,3]
[387229233,1758661897806,-4154.79,0.00024931,3]
[387229234,1758661897816,-400.0,0.00024931,3]
[387229235,1758661897826,-400.0,0.00024931,3]
[387229236,1758661897836,-789.68,0.00024931,3]
[387229237,1758661897846,-402.52820835,0.00024931,3]
[387229238,1758661897855,-1172.37,0.00024931,3]
[387229239,1758661897867,-400.0,0.00024931,3]
[387229240,1758661897877,-593.4,0.00024931,3]
[387229241,1758661897886,-400.0,0.00024931,3]
[387229242,1758661897896,-1296.78,0.00024931,3]
[387229243,1758661897907,-400.0,0.00024931,3]
[387229244,1758661897917,-2897.01,0.00024931,3]
[387229245,1758661898154,-400.0,0.00024931,3]
[387229246,1758661898164,-400.0,0.00024931,3]
[387229247,1758661898174,-1886.87,0.00024931,3]
[387229248,1758661898183,-400.0,0.00024931,3]
[387229249,1758661898192,-2169.42,0.00024931,3]
[387229250,1758661898201,-400.0,0.00024931,3]
[387229251,1758661898210,-1618.79,0.00024931,3]
[387229252,1758661898220,-1364.0,0.00024931,3]
[387229253,1758661898229,-400.0,0.00024931,3]
[387229254,1758661898247,-516.62,0.00024931,3]
[387229255,1758661898259,-400.0,0.00024931,3]
[387229256,1758661898269,-1753.04,0.00024931,3]
[387229257,1758661898279,-462.47,0.00024931,3]
[387229258,1758661898290,-400.0,0.00024931,3]
[387229259,1758661898300,-919.61,0.00024931,3]
[387229260,1758661898311,-400.0,0.00024931,3]
[387229261,1758661898321,-400.0,0.00024931,3]
[387229262,1758661898331,-2595.72,0.00024931,3]
[387229263,1758661898341,-1280.49,0.00024931,3]
[387229264,1758661898353,-2252.39,0.00024931,3]
[387229265,1758661898363,-400.0,0.00024931,3]
[387229266,1758661898373,-686.6,0.00024931,3]
[387229267,1758661898383,-474.44,0.00024931,3]
[387229268,1758661898393,-574.41,0.00024931,3]
[387229269,1758661898403,-8267.3,0.00024931,3]
[387229270,1758661898415,-515.07,0.00024931,3]
[387229271,1758661898425,-400.0,0.00024931,3]
[387229272,1758661898435,-2019.27,0.00024931,3]
[387229273,1758661898445,-8704.69,0.00024931,3]
[387229274,1758661898455,-400.0,0.00024931,3]
[387229275,1758661898465,-2411.09,0.00024931,3]
[387229276,1758661898475,-1808.41,0.00024931,3]
[387229277,1758661898486,-400.0,0.00024931,3]
[387229278,1758661898496,-2119.33,0.00024931,3]
[387229279,1758661898506,-400.0,0.00024931,3]
[387229280,1758661898516,-1673.92,0.00024931,3]
[387229281,1758661898526,-400.0,0.00024931,3]
[387229282,1758661898536,-400.0,0.00024931,3]
[387229283,1758661898547,-995.32,0.00024931,3]
[387229284,1758661898557,-400.0,0.00024931,3]
[387229285,1758661898567,-2645.92,0.00024931,3]
[387229286,1758661898577,-400.0,0.00024931,3]
[387229287,1758661898587,-400.0,0.00024931,3]
[387229288,1758661898600,-400.0,0.00024931,3]
[387229289,1758661898610,-400.0,0.00024931,3]
[387229290,1758661898620,-3087.87,0.00024931,3]
[387229291,1758661898630,-1674.27,0.00024931,3]
[387229292,1758661898642,-14030.8,0.00024931,3]
[387229293,1758661898652,-400.0,0.00024931,3]
[387229294,1758661898662,-1810.46,0.00024931,3]
[387229295,1758661898672,-1381.78,0.00024931,3]
[387229296,1758661898682,-400.0,0.00024931,3]
[387229297,1758661898691,-400.0,0.00024931,3]
[387229298,1758661898702,-400.0,0.00024931,3]
[387229299,1758661898712,-1745.11,0.00024931,3]
[387229300,1758661898721,-400.0,0.00024931,3]
[387229301,1758661898731,-400.0,0.00024931,3]
[387229302,1758661898741,-1963.62,0.00024931,3]
[387229303,1758661898751,-400.0,0.00024931,3]
[387229304,1758661898761,-483.33,0.00024931,3]
[387229305,1758661898771,-400.0,0.00024931,3]
[387229306,1758661898781,-1156.13,0.00024931,3]
[387229307,1758661898791,-400.0,0.00024931,3]
[387229308,1758661898801,-778.13,0.00024931,3]
[387229309,1758661898811,-676.39,0.00024931,3]
[387229310,1758661898820,-1692.74,0.00024931,3]
[387229311,1758661898831,-9226.96,0.00024931,3]
[387229312,1758661898841,-400.0,0.00024931,3]
[387229313,1758661898851,-1493.6,0.00024931,3]
[387229314,1758661898860,-354.24,0.00024931,3]
[387229315,1758661898870,-400.0,0.00024931,3]
[387229316,1758661898881,-726.57,0.00024931,3]
[387229317,1758661898891,-400.0,0.00024931,3]
[387229318,1758661898901,-400.0,0.00024931,3]
[387229319,1758661898911,-304.51798216,0.00024931,3]
[387229320,1758661898921,-400.0,0.00024931,3]
[387229321,1758661898932,-400.0,0.00024931,3]
[387229322,1758661898943,-400.0,0.00024931,3]
[387229323,1758661898953,-400.0,0.00024931,3]
[387229324,1758661898963,-538.52,0.00024931,3]
[387229325,1758661898973,-400.0,0.00024931,3]
[387229326,1758661898982,-186.9,0.00024931,3]
[387229327,1758661898992,-400.0,0.00024931,3]
[387229328,1758661899002,-672.95,0.00024931,3]
[387229329,1758661899011,-225.54,0.00024931,3]
[387229330,1758661899021,-226.0,0.00024932,7]
[387229331,1758661899030,-500.0,0.00024932,2]
[387229332,1758661899041,-208.0,0.0002495,2]
[387229333,1758661899051,-301.90859787,0.00024973,2]
[387229334,1758661899061,-500.0,0.00024973,2]
[387229335,1758661899070,-500.0,0.00024973,2]
[387229336,1758661899080,-500.0,0.00024973,2]
[387229337,1758661899089,-454.45342863,0.00024973,2]
[387229338,1758661899100,-504.4040655,0.00024973,2]
[387229339,1758661899109,-500.0,0.00024973,2]
[387229340,1758661899119,-500.0,0.00024973,2]
[387229341,1758661899129,-500.0,0.00024973,2]
[387229342,1758661899138,-500.0,0.00024973,2]
[387229343,1758661899148,-500.0,0.00024973,2]
[387229344,1758661899159,-502.05760304,0.00024973,2]
[387229345,1758661899168,-500.0,0.00024973,2]
[387229346,1758661899178,-500.0,0.00024973,2]
[387229347,1758661899187,-247.77842926,0.00024973,2]
[387229348,1758661899197,-500.0,0.00024973,2]
[387229349,1758661899206,-501.40154232,0.00024973,2]
[387229350,1758661899216,-546.54166643,0.00024973,2]
[387229351,1758661899225,-167.6924357,0.00024973,2]
[387229352,1758661899234,-500.0,0.00024973,2]
[387229353,1758661899244,-500.0,0.00024973,2]
[387229354,1758661899253,-500.0,0.00024973,2]
[387229355,1758661899263,-500.0,0.00024973,2]
[387229356,1758661899274,-500.0,0.00024973,2]
[387229357,1758661899287,-500.0,0.00024973,2]
[387229358,1758661899296,-500.0,0.00024973,2]
[387229359,1758661899306,-500.0,0.00024973,2]
[387229360,1758661899315,-500.0,0.00024973,2]
[387229361,1758661899325,-156.89714162,0.00024973,2]
[387229362,1758661899334,-500.595319,0.00024973,2]
[387229363,1758661899343,-500.0,0.00024973,2]
[387229364,1758661899352,-522.00329842,0.00024973,2]
[387229365,1758661899362,-500.0,0.00024973,2]
[387229366,1758661899371,-339.12772927,0.00024973,2]
[387229367,1758661899381,-168.58812346,0.00024973,2]
[387229368,1758661899391,-500.0,0.00024973,2]
[387229369,1758661899400,-277.86760712,0.00024973,2]
[387229370,1758661899409,-500.0,0.00024973,2]
[387229371,1758661899419,-500.0,0.00024973,2]
[387229372,1758661899428,-500.0,0.00024973,2]
[387229373,1758661899438,-250.0,0.00024973,2]
[387229374,1758661899450,-526.78976476,0.00024973,2]
[387229375,1758661899460,-500.0,0.00024973,2]
[387229376,1758661899470,-500.0,0.00024973,2]
[387229377,1758661899481,-500.0,0.00024973,2]
[387229378,1758661899491,-500.18755511,0.00024973,2]
[387229379,1758661899501,-200.0,0.00024973,2]
[387229380,1758661899511,-314.33835875,0.00024973,2]
[387229381,1758661899520,-163.0132444,0.00024973,2]
[387229382,1758661899529,-500.0,0.00024973,2]
[387229383,1758661899539,-500.0,0.00024973,2]
[387229384,1758661899548,-1960.58917941,0.00024995,2]
[387229385,1758661899557,-227.42,0.00025,7]
[387229386,1758661899567,-14316.63964632,0.00025,2]
[387229387,1758661899576,-21341.37038101,0.00025,2]
[387229388,1758661899586,-500.0,0.00025,2]
[387229389,1758661899600,-705.09,0.00025,2]
[387229390,1758661899610,-781.67,0.00025,7]
[387229391,1758661899619,-3758.20374092,0.00025,2]
[387229392,1758661899629,-15066.01891328,0.00025,2]
[387229393,1758661899639,-7152.20475481,0.00025,2]
[387229394,1758661899649,-1231.0,0.00025,2]
[387229395,1758661899659,-549.51,0.00025,7]
[387229396,1758661899668,-250.0,0.00025,7]
[387229397,1758661899679,-364.38,0.00025,7]
[387229398,1758661899689,-17270.85210079,0.00025,3]
[387229399,1758661899699,-1068.77,0.00025,7]
[387229400,1758661899708,-226.0,0.00025,7]
[387229401,1758661899718,-1709.99690283,0.00025006,2]
[387229402,1758661899727,-150.0,0.0002501,2]
[387229403,1758661899737,-150.0,0.0002501,2]
[387229404,1758661899746,-500.0,0.0002501,2]
[387229405,1758661899756,-200.0,0.0002501,2]
[387229406,1758661899766,-500.0,0.0002501,2]
[387229407,1758661899775,-203.13142375,0.0002501,2]
[387229408,1758661899784,-500.0,0.0002501,2]
[387229409,1758661899794,-150.0,0.0002501,2]
[387229410,1758661899803,-500.0,0.0002501,2]
[387229411,1758661899813,-150.0,0.0002501,2]
[387229412,1758661899823,-404.4334417,0.0002501,2]
[387229413,1758661899833,-150.0,0.0002501,2]
[387229414,1758661899842,-150.0,0.0002501,2]
[387229415,1758661899852,-500.0,0.0002501,2]
[387229416,1758661899861,-150.0,0.0002501,2]
[387229417,1758661899871,-150.0,0.0002501,2]
[387229418,1758661899880,-500.0,0.0002501,2]
[387229419,1758661899891,-500.0,0.0002501,2]
[387229420,1758661899900,-150.0,0.0002501,2]
[387229421,1758661899910,-150.0,0.0002501,2]
[387229422,1758661899920,-150.0,0.0002501,2]
[387229423,1758661899929,-500.0,0.0002501,2]
[387229424,1758661899939,-500.0,0.0002501,2]
[387229425,1758661899949,-500.0,0.0002501,2]
[387229426,1758661899958,-500.0,0.0002501,2]
[387229427,1758661899968,-595.0,0.0002501,2]
[387229428,1758661899978,-500.0,0.0002501,2]
[387229429,1758661899988,-500.0,0.0002501,2]
[387229430,1758661899998,-15000.0,0.0002501,2]
[387229431,1758661900009,-208.0,0.00025017,2]
[387229432,1758661900018,-500.0,0.00025034,9]
[387229433,1758661900027,-500.0,0.00025034,9]
[387229434,1758661900037,-500.0,0.00025034,9]
[387229435,1758661900047,-500.0,0.00025034,9]
[387229436,1758661900056,-500.0,0.00025034,9]
[387229437,1758661900065,-500.0,0.00025034,9]
[387229438,1758661900075,-500.0,0.00025034,9]
[387229439,1758661900086,-500.0,0.00025034,9]
[387229440,1758661900430,-621.0,0.00025068,2]
[387229441,1758661900481,-208.0,0.0002507,2]
[387229442,1758661900491,-877.0,0.0002508,2]
[387229443,1758661900500,-150.0,0.00025095,2]
[387229444,1758661900510,-150.0,0.00025095,2]
[387229445,1758661900520,-150.0,0.00025095,2]
[387229446,1758661900530,-150.0,0.00025095,2]
[387229447,1758661900540,-150.0,0.00025095,2]
[387229448,1758661900550,-150.0,0.00025095,2]
[387229449,1758661900559,-150.0,0.00025095,2]
[387229450,1758661900568,-150.0,0.00025095,2]
[387229451,1758661900578,-226.643,0.00025095,2]
[387229452,1758661900587,-1000.0,0.00025099,2]
[387229453,1758661900600,-500.0,0.000251,5]
[387229454,1758661900610,-37525.44904087,0.000251,2]
[387229455,1758661900620,-161.23326321,0.00025101,2]
[387229456,1758661900630,-2007.74974556,0.00025105,2]
[387229457,1758661900641,-947.43,0.00025163,3]
[387229458,1758661900650,-208.0,0.00025169,2]
[387229459,1758661900660,-163.48,0.00025199,7]
[387229460,1758661900672,-666.0,0.00025204,2]
[387229461,1758661900682,-300.0,0.00025204,10]
[387229462,1758661900692,-300.0,0.00025204,10]
[387229463,1758661900701,-317.01966503,0.00025204,10]
[387229464,1758661900711,-400.0,0.00025205,2]
[387229465,1758661900724,-400.0,0.00025205,2]
[387229466,1758661900734,-400.0,0.00025205,3]
[387229467,1758661900744,-400.0,0.00025205,3]
[387229468,1758661900754,-400.0,0.00025205,3]
[387229469,1758661900763,-400.0,0.00025205,3]
[387229470,1758661900773,-400.0,0.00025205,3]
[387229471,1758661900783,-400.0,0.00025205,3]
[387229472,1758661900793,-400.0,0.00025205,3]
[387229473,1758661900803,-536.53,0.00025205,3]
[387229474,1758661900812,-400.0,0.00025205,3]
[387229475,1758661900822,-400.0,0.00025205,3]
[387229476,1758661900832,-451.32,0.00025205,3]
[387229477,1758661900841,-400.0,0.00025205,3]